[Event "EYCC Open-U16 2019"]
[Site "Bratislava"]
[Date "2019.08.09"]
[Round "8.28"]
[White "Vorisek, Jakub"]
[Black "Vitenberg, Noam Aviv"]
[Result "1/2-1/2"]
[ECO "B13"]
[WhiteElo "2071"]
[BlackElo "2300"]
[Annotator "NA"]
[PlyCount "82"]
[EventDate "2019.08.02"]
[EventType "swiss"]
[EventCountry "SVK"]
[SourceTitle "playchess.com"]
[Source "ChessBase"]
[SourceQuality "1"]
[TimeControl "40/5400+30:1800+30"]

1. e4 {[%emt 0:00:00]} c6 {[%emt 0:00:00]} 2. d4 {[%emt 0:00:00]} d5 {[%emt 0:00:00]} 3. exd5 {[%emt 0:00:13]} cxd5 {[%emt 0:00:06]} 4. c4 {[%emt 0:00:17]} Nf6 {[%emt 0:00:44]} 5. Nc3 {[%emt 0:00:39]} Nc6 {[%emt 0:06:00]} 6. Nf3 {[%emt 0:00:42]} Be6 {[%emt 0:00:54]} 7. c5 {[%emt 0:05:13]} g6 {[%emt 0:01:24]} 8. Bb5 {[%emt 0:03:20]} Bg7 {[%emt 0:11:02]} 9. O-O {[%emt 0:06:53]} O-O {[%emt 0:06:30]} 10. Be3 {[%emt 0:04:11]} Ne4 {[%emt 0:06:14]} 11. Re1 {[%emt 0:11:20]} Rc8 {[%emt 0:10:43]} 12. a3 {[%emt 0:10:26]} Qa5 {[%emt 0:30:26]} 13. Qa4 {[%emt 0:28:10]} Nxc3 {[%emt 0:08:48]} 14. bxc3 {[%emt 0:00:22]} Qxa4 {[%emt 0:03:24]} 15. Bxa4 {[%emt 0:00:11]} b6 {[%emt 0:02:31]} 16. cxb6 {[%emt 0:07:39]} axb6 {[%emt 0:00:18]} 17. Rab1 {[%emt 0:00:41]} Na5 {[%emt 0:01:50]} 18. Rxb6 {[%emt 0:08:10]} Rxc3 {[%emt 0:01:44]} 19. Ng5 {[%emt 0:00:15]} Nc4 {[%emt 0:03:13]} 20. Rb7 {[%emt 0:00:11]} Bf5 {[%emt 0:02:14]} 21. Rb3 {[%emt 0:06:14]} Rxb3 {[%emt 0:00:49]} 22. Bxb3 {[%emt 0:00:04]} Nxe3 {[%emt 0:01:14]} 23. fxe3 {[%emt 0:00:22]} e6 {[%emt 0:00:11]} 24. Kf2 {[%emt 0:02:34]} Rb8 {[%emt 0:00:22]} 25. Bd1 {[%emt 0:00:42]} Bf8 {[%emt 0:01:08]} 26. a4 {[%emt 0:01:03]} Bd3 {[%emt 0:00:28]} 27. Be2 {[%emt 0:01:07]} Rb2 {[%emt 0:00:18]} 28. Kf1 {[%emt 0:00:05]} Bb1 {[%emt 0:00:45]} 29. Rc1 {[%emt 0:00:16]} Be7 {[%emt 0:00:35]} 30. Nf3 {[%emt 0:00:28]} Bb4 {[%emt 0:00:26]} 31. Ne5 {[%emt 0:00:27]} Bd2 {[%emt 0:00:34]} 32. Rc8+ {[%emt 0:00:08]} Kg7 {[%emt 0:00:06]} 33. Rc7 {[%emt 0:02:19]} Bxe3 {[%emt 0:00:14]} 34. Rxf7+ {[%emt 0:00:04]} Kg8 {[%emt 0:00:16]} 35. Bg4 {[%emt 0:00:25]} Bf5 {[%emt 0:01:13]} 36. Bxf5 {[%emt 0:01:26]} gxf5 {[%emt 0:00:19]} 37. Re7 {[%emt 0:00:30]} Bxd4 {[%emt 0:00:35]} 38. Nf3 {[%emt 0:00:44]} Bc5 {[%emt 0:00:46]} 39. Rxe6 {[%emt 0:00:07]} Rf2+ {[%emt 0:00:24]} 40. Ke1 {[%emt 0:00:00]} Rxg2 {[%emt 0:00:00]} 41. Re5 {[%emt 0:01:06]} Ra2 {[%emt 0:11:27]} 1/2-1/2

[Event "EYCC Open-U16 2019"]
[Site "Bratislava"]
[Date "2019.08.09"]
[Round "8.29"]
[White "Minko, Dmitry"]
[Black "Bacrot, Alexandre"]
[Result "1/2-1/2"]
[ECO "B09"]
[WhiteElo "2061"]
[BlackElo "2265"]
[Annotator "NA"]
[PlyCount "83"]
[EventDate "2019.08.02"]
[EventType "swiss"]
[EventCountry "SVK"]
[SourceTitle "playchess.com"]
[Source "ChessBase"]
[SourceQuality "1"]
[TimeControl "40/5400+30:1800+30"]

1. e4 {[%emt 0:00:00]} g6 {[%emt 0:00:00]} 2. d4 {[%emt 0:00:00]} Bg7 {[%emt 0:00:00]} 3. Nc3 {[%emt 0:00:00]} d6 {[%emt 0:00:00]} 4. f4 {[%emt 0:00:15]} Nf6 {[%emt 0:04:22]} 5. Nf3 {[%emt 0:02:44]} c5 {[%emt 0:00:33]} 6. e5 {[%emt 0:09:05]} Nfd7 {[%emt 0:11:51]} 7. exd6 {[%emt 0:18:02]} O-O {[%emt 0:01:22]} 8. dxe7 {[%emt 0:10:43]} Qxe7+ {[%emt 0:01:59]} 9. Be2 {[%emt 0:01:15]} cxd4 {[%emt 0:02:44]} 10. Nb5 {[%emt 0:00:42]} Nc6 {[%emt 0:02:31]} 11. O-O {[%emt 0:12:28]} Nb6 {[%emt 0:06:28]} 12. Bd3 {[%emt 0:04:34]} Qc5 {[%emt 0:06:46]} 13. Nd2 {[%emt 0:04:03]} a6 {[%emt 0:03:01]} 14. Ne4 {[%emt 0:03:28]} Qe7 {[%emt 0:00:58]} 15. Nbd6 {[%emt 0:01:10]} f5 {[%emt 0:01:06]} 16. Nxc8 {[%emt 0:00:06]} Raxc8 {[%emt 0:00:04]} 17. Ng5 {[%emt 0:00:47]} h6 {[%emt 0:02:48]} 18. Re1 {[%emt 0:02:43]} Qd6 {[%emt 0:02:29]} 19. Ne6 {[%emt 0:02:35]} Rfe8 {[%emt 0:00:12]} 20. Nxg7 {[%emt 0:00:05]} Kxg7 {[%emt 0:00:06]} 21. Bd2 {[%emt 0:02:15]} Rxe1+ {[%emt 0:10:38]} 22. Qxe1 {[%emt 0:00:07]} Kh7 {[%emt 0:03:47]} 23. g4 {[%emt 0:03:27]} fxg4 {[%emt 0:02:32]} 24. Qh4 {[%emt 0:01:25]} Ne7 {[%emt 0:06:50]} 25. Re1 {[%emt 0:03:11]} Nf5 {[%emt 0:00:10]} 26. Bxf5 {[%emt 0:03:47]} gxf5 {[%emt 0:00:05]} 27. Bb4 {[%emt 0:00:31]} Qg6 {[%emt 0:09:30]} 28. Qe7+ {[%emt 0:01:00]} Kg8 {[%emt 0:02:11]} 29. Re6 {[%emt 0:01:08]} Qf7 {[%emt 0:00:04]} 30. Rxb6 {[%emt 0:10:10]} Qxe7 {[%emt 0:00:03]} 31. Bxe7 {[%emt 0:00:05]} Rxc2 {[%emt 0:00:03]} 32. Ba3 {[%emt 0:01:49]} d3 {[%emt 0:00:18]} 33. Rd6 {[%emt 0:00:06]} d2 {[%emt 0:00:44]} 34. Kf1 {[%emt 0:00:01]} h5 {[%emt 0:01:11]} 35. Ke2 {[%emt 0:01:11]} d1=Q+ {[%emt 0:00:06]} 36. Kxd1 {[%emt 0:00:04]} Rxh2 {[%emt 0:00:06]} 37. Ke1 {[%emt 0:01:24]} h4 {[%emt 0:00:20]} 38. Kf1 {[%emt 0:01:24]} h3 {[%emt 0:01:29]} 39. Rf6 {[%emt 0:00:51]} Rc2 {[%emt 0:00:39]} 40. Kg1 {[%emt 0:00:00]} Rc1+ {[%emt 0:00:00]} 41. Kh2 {[%emt 0:00:26]} Rc2+ {[%emt 0:02:10]} 42. Kh1 {[%emt 0:01:43]} 1/2-1/2

[Event "EYCC Open-U16 2019"]
[Site "Bratislava"]
[Date "2019.08.09"]
[Round "8.30"]
[White "Turcan, Richard"]
[Black "Barak, David"]
[Result "1-0"]
[ECO "B32"]
[WhiteElo "2232"]
[BlackElo "2015"]
[Annotator "NA"]
[PlyCount "107"]
[EventDate "2019.08.02"]
[EventType "swiss"]
[EventCountry "SVK"]
[SourceTitle "playchess.com"]
[Source "ChessBase"]
[SourceQuality "1"]
[TimeControl "40/5400+30:1800+30"]

1. e4 {[%emt 0:00:00]} c5 {[%emt 0:00:00]} 2. Nf3 {[%emt 0:00:00]} Nc6 {[%emt 0:00:00]} 3. d4 {[%emt 0:00:00]} cxd4 {[%emt 0:00:00]} 4. Nxd4 {[%emt 0:00:00]} e5 {[%emt 0:00:00]} 5. Nb5 {[%emt 0:01:14]} d6 {[%emt 0:00:00]} 6. N1c3 {[%emt 0:01:00]} a6 {[%emt 0:00:10]} 7. Na3 {[%emt 0:00:04]} b5 {[%emt 0:00:05]} 8. Nd5 {[%emt 0:00:05]} Nce7 {[%emt 0:00:21]} 9. c4 {[%emt 0:02:25]} Nxd5 {[%emt 0:00:33]} 10. exd5 {[%emt 0:01:09]} Nf6 {[%emt 0:03:14]} 11. cxb5 {[%emt 0:05:10]} Be7 {[%emt 0:00:16]} 12. Be2 {[%emt 0:11:16]} O-O {[%emt 0:05:13]} 13. O-O {[%emt 0:01:48]} Ne4 {[%emt 0:07:56]} 14. Be3 {[%emt 0:09:44]} f5 {[%emt 0:17:13]} 15. f3 {[%emt 0:10:24]} Bg5 {[%emt 0:09:22]} 16. Qc1 {[%emt 0:14:34]} Bxe3+ {[%emt 0:09:10]} 17. Qxe3 {[%emt 0:00:06]} Nc5 {[%emt 0:00:09]} 18. b4 {[%emt 0:10:25]} Na4 {[%emt 0:03:52]} 19. Nc4 {[%emt 0:06:22]} axb5 {[%emt 0:17:39]} 20. Na5 {[%emt 0:00:14]} Bd7 {[%emt 0:00:44]} 21. Rac1 {[%emt 0:05:58]} Qh4 {[%emt 0:04:39]} 22. Rc7 {[%emt 0:05:53]} Rf7 {[%emt 0:14:27]} 23. a3 {[%emt 0:01:48]} Qd8 {[%emt 0:05:24]} 24. Rc2 {[%emt 0:05:49]} Qb6 {[%emt 0:00:56]} 25. Qxb6 {[%emt 0:01:38]} Nxb6 {[%emt 0:00:01]} 26. Rd1 {[%emt 0:00:12]} Rff8 {[%emt 0:00:31]} 27. Rc7 {[%emt 0:02:09]} Rfc8 {[%emt 0:00:30]} 28. Rb7 {[%emt 0:01:26]} Rab8 {[%emt 0:00:24]} 29. Rxb8 {[%emt 0:01:45]} Rxb8 {[%emt 0:00:01]} 30. Nc6 {[%emt 0:00:30]} Bxc6 {[%emt 0:01:34]} 31. dxc6 Nc8 32. Rd5 {[%emt 0:01:30]} Kf7 {[%emt 0:00:40]} 33. Rxb5 {[%emt 0:00:53]} Rxb5 {[%emt 0:00:52]} 34. Bxb5 {[%emt 0:00:03]} Ke7 {[%emt 0:00:07]} 35. Ba6 {[%emt 0:00:53]} Nb6 {[%emt 0:00:34]} 36. a4 {[%emt 0:00:37]} Kd8 {[%emt 0:00:50]} 37. a5 {[%emt 0:00:48]} Nd5 {[%emt 0:00:27]} 38. Bb7 {[%emt 0:00:32]} Kc7 {[%emt 0:00:30]} 39. b5 {[%emt 0:00:19]} g5 {[%emt 0:00:31]} 40. b6+ {[%emt 0:00:00]} Nxb6 {[%emt 0:00:00]} 41. axb6+ {[%emt 0:00:46]} Kxb6 {[%emt 0:00:18]} 42. Bc8 {[%emt 0:00:33]} f4 {[%emt 0:02:51]} 43. Bf5 {[%emt 0:00:11]} Kxc6 {[%emt 0:01:28]} 44. Bxh7 {[%emt 0:00:05]} Kd5 {[%emt 0:02:22]} 45. Kf2 {[%emt 0:02:10]} Kd4 {[%emt 0:01:28]} 46. Ke2 {[%emt 0:01:36]} d5 {[%emt 0:01:02]} 47. Bb1 {[%emt 0:01:39]} Kc3 {[%emt 0:12:18]} 48. Ba2 {[%emt 0:01:15]} Kd4 {[%emt 0:00:47]} 49. Kd2 {[%emt 0:00:45]} e4 {[%emt 0:02:01]} 50. h3 {[%emt 0:02:25]} Ke5 {[%emt 0:01:23]} 51. Kc3 {[%emt 0:00:59]} d4+ {[%emt 0:01:15]} 52. Kc4 {[%emt 0:01:22]} d3 {[%emt 0:01:30]} 53. Kc3 {[%emt 0:00:36]} exf3 {[%emt 0:05:48]} 54. gxf3 {[%emt 0:00:57] Kd5} 1-0

[Event "EYCC Open-U16 2019"]
[Site "Bratislava"]
[Date "2019.08.09"]
[Round "8.31"]
[White "Sismeiro, Miguel"]
[Black "Jazdanovs, Aleksandrs"]
[Result "1/2-1/2"]
[ECO "B52"]
[WhiteElo "2103"]
[BlackElo "2238"]
[Annotator "NA"]
[PlyCount "98"]
[EventDate "2019.08.02"]
[EventType "swiss"]
[EventCountry "SVK"]
[SourceTitle "playchess.com"]
[Source "ChessBase"]
[SourceQuality "1"]
[TimeControl "40/5400+30:1800+30"]

1. e4 {[%emt 0:00:00]} c5 {[%emt 0:00:00]} 2. Nf3 {[%emt 0:00:00]} d6 {[%emt 0:00:00]} 3. Bb5+ {[%emt 0:00:00]} Bd7 {[%emt 0:00:00]} 4. Bxd7+ {[%emt 0:00:00]} Qxd7 {[%emt 0:00:01]} 5. O-O {[%emt 0:00:00]} Nc6 {[%emt 0:00:23]} 6. c3 {[%emt 0:00:20]} d5 {[%emt 0:00:59]} 7. exd5 {[%emt 0:09:02]} Qxd5 {[%emt 0:00:07]} 8. d4 {[%emt 0:00:07]} e6 {[%emt 0:03:49]} 9. Be3 {[%emt 0:18:04]} cxd4 {[%emt 0:04:02]} 10. cxd4 {[%emt 0:02:22]} Nf6 {[%emt 0:01:24]} 11. Nc3 {[%emt 0:02:00]} Qa5 {[%emt 0:00:24]} 12. Qb3 {[%emt 0:17:24]} Qb4 {[%emt 0:02:08]} 13. d5 {[%emt 0:03:05]} Qxb3 {[%emt 0:04:00]} 14. axb3 {[%emt 0:00:35]} Nxd5 {[%emt 0:00:26]} 15. Nxd5 {[%emt 0:00:32]} exd5 {[%emt 0:00:05]} 16. Rfd1 {[%emt 0:00:22]} Bb4 {[%emt 0:12:31]} 17. Rxd5 {[%emt 0:00:49]} O-O {[%emt 0:00:02]} 18. Nd4 {[%emt 0:06:42]} Nxd4 {[%emt 0:02:38]} 19. Bxd4 {[%emt 0:00:08]} a6 {[%emt 0:00:38]} 20. Bb6 {[%emt 0:12:33]} Rfe8 {[%emt 0:02:52]} 21. Rd7 {[%emt 0:00:43]} Re7 {[%emt 0:00:18]} 22. Rxe7 {[%emt 0:00:31]} Bxe7 {[%emt 0:00:07]} 23. Rd1 {[%emt 0:00:15]} Rc8 {[%emt 0:01:16]} 24. g3 {[%emt 0:00:10]} Rc6 {[%emt 0:01:02]} 25. Ba5 {[%emt 0:09:27]} Bf6 {[%emt 0:06:24]} 26. Rd7 {[%emt 0:00:38]} b5 {[%emt 0:00:16]} 27. Bc3 {[%emt 0:01:13]} Kf8 {[%emt 0:00:08]} 28. Bxf6 {[%emt 0:00:10]} Rxf6 {[%emt 0:00:07]} 29. Kg2 {[%emt 0:01:06]} Ke8 {[%emt 0:00:07]} 30. Ra7 {[%emt 0:00:06]} g5 {[%emt 0:02:45]} 31. h3 {[%emt 0:01:36]} Rd6 {[%emt 0:01:30]} 32. b4 {[%emt 0:01:30]} Kf8 {[%emt 0:01:12]} 33. Kf3 {[%emt 0:00:48]} Rd4 {[%emt 0:01:09]} 34. Rxa6 {[%emt 0:00:06]} Rxb4 {[%emt 0:00:05]} 35. Rb6 {[%emt 0:03:38]} Kg7 {[%emt 0:01:26]} 36. h4 {[%emt 0:01:37]} gxh4 {[%emt 0:03:55]} 37. gxh4 {[%emt 0:00:05]} Rxb2 {[%emt 0:00:18]} 38. Kg3 {[%emt 0:01:59]} h5 {[%emt 0:00:30]} 39. f3 {[%emt 0:00:26]} f6 {[%emt 0:00:10]} 40. Kf4 {[%emt 0:00:00]} Kg6 {[%emt 0:00:00]} 41. Rb7 {[%emt 0:01:21]} b4 {[%emt 0:01:03]} 42. Rb8 {[%emt 0:02:48]} Rb1 {[%emt 0:01:09]} 43. Rg8+ {[%emt 0:00:18]} Kf7 {[%emt 0:05:39]} 44. Rb8 {[%emt 0:01:45]} Ke6 {[%emt 0:05:01]} 45. Rb6+ {[%emt 0:00:40]} Ke7 {[%emt 0:00:45]} 46. Kf5 {[%emt 0:02:06]} Rf1 {[%emt 0:01:20]} 47. f4 {[%emt 0:01:52]} Rh1 {[%emt 0:00:10]} 48. Rb7+ {[%emt 0:00:35]} Kd6 {[%emt 0:01:00]} 49. Rxb4 {[%emt 0:00:24]} Rxh4 {[%emt 0:00:09]} 1/2-1/2

[Event "EYCC Open-U16 2019"]
[Site "Bratislava"]
[Date "2019.08.09"]
[Round "8.32"]
[White "Briem, Stephan"]
[Black "Nagy, Ladislav"]
[Result "1/2-1/2"]
[ECO "E42"]
[WhiteElo "2223"]
[BlackElo "2061"]
[Annotator "NA"]
[PlyCount "104"]
[EventDate "2019.08.02"]
[EventType "swiss"]
[EventCountry "SVK"]
[SourceTitle "playchess.com"]
[Source "ChessBase"]
[SourceQuality "1"]
[TimeControl "40/5400+30:1800+30"]

1. d4 {[%emt 0:00:00]} Nf6 {[%emt 0:00:00]} 2. c4 {[%emt 0:00:00]} e6 {[%emt 0:00:08]} 3. Nc3 {[%emt 0:00:00]} Bb4 {[%emt 0:00:42]} 4. e3 {[%emt 0:00:12]} c5 {[%emt 0:01:11]} 5. Nge2 {[%emt 0:03:07]} cxd4 {[%emt 0:01:36]} 6. exd4 {[%emt 0:00:07]} d5 {[%emt 0:01:03]} 7. a3 {[%emt 0:01:37]} Be7 {[%emt 0:00:41]} 8. Nf4 {[%emt 0:03:52]} dxc4 {[%emt 0:17:23]} 9. Bxc4 {[%emt 0:01:13]} O-O {[%emt 0:01:48]} 10. O-O {[%emt 0:01:51]} Nc6 {[%emt 0:03:39]} 11. Be3 {[%emt 0:04:50]} e5 {[%emt 0:05:46]} 12. dxe5 {[%emt 0:08:36]} Nxe5 {[%emt 0:02:12]} 13. Be2 {[%emt 0:09:48]} Bg4 {[%emt 0:08:04]} 14. Qb3 {[%emt 0:06:47]} Bxe2 {[%emt 0:02:43]} 15. Nfxe2 {[%emt 0:05:28]} b6 {[%emt 0:05:07]} 16. Rfd1 {[%emt 0:05:52]} Qc8 {[%emt 0:02:20]} 17. Nd5 {[%emt 0:02:56]} Nxd5 {[%emt 0:03:27]} 18. Qxd5 {[%emt 0:00:53]} Ng4 {[%emt 0:05:10]} 19. Bd4 {[%emt 0:12:44]} Rd8 {[%emt 0:09:54]} 20. Qf3 {[%emt 0:02:12]} Nf6 {[%emt 0:06:36]} 21. Ng3 {[%emt 0:03:23]} Qg4 {[%emt 0:02:13]} 22. Qxg4 {[%emt 0:04:03]} Nxg4 {[%emt 0:00:07]} 23. Nf5 {[%emt 0:06:17]} Bf6 {[%emt 0:01:59]} 24. Bxf6 {[%emt 0:04:56]} Nxf6 {[%emt 0:00:21]} 25. Ne7+ {[%emt 0:02:25]} Kf8 {[%emt 0:00:56]} 26. Nc6 {[%emt 0:00:08]} Rxd1+ {[%emt 0:04:03]} 27. Rxd1 {[%emt 0:00:05]} a5 {[%emt 0:00:51]} 28. f3 {[%emt 0:01:38]} Rc8 {[%emt 0:01:16]} 29. Nd4 {[%emt 0:00:41]} g6 {[%emt 0:02:03]} 30. Kf2 {[%emt 0:00:29]} Ke7 {[%emt 0:01:18]} 31. Rd2 {[%emt 0:01:28]} Rc1 {[%emt 0:02:01]} 32. g3 {[%emt 0:03:19]} Nd7 {[%emt 0:01:39]} 33. Ne2 {[%emt 0:01:06]} Rh1 {[%emt 0:02:50]} 34. Kg2 {[%emt 0:02:37]} Re1 {[%emt 0:01:37]} 35. Nc3 {[%emt 0:00:38]} Rc1 {[%emt 0:02:38]} 36. Kf2 {[%emt 0:01:24]} Ke6 {[%emt 0:00:57]} 37. Ne2 {[%emt 0:00:53]} Rc8 {[%emt 0:00:56]} 38. Nf4+ {[%emt 0:00:36]} Ke7 {[%emt 0:00:42]} 39. Re2+ {[%emt 0:00:14]} Kd6 {[%emt 0:00:37]} 40. Rd2+ {[%emt 0:00:00]} Kc6 {[%emt 0:00:00]} 41. Rc2+ {[%emt 0:03:55]} Kb7 {[%emt 0:01:57]} 42. Rxc8 {[%emt 0:01:38]} Kxc8 {[%emt 0:00:09]} 43. Ke3 {[%emt 0:02:58]} Kc7 {[%emt 0:01:12]} 44. Kd4 {[%emt 0:01:32]} Kd6 {[%emt 0:01:45]} 45. Nd3 {[%emt 0:00:46]} f6 {[%emt 0:01:58]} 46. f4 {[%emt 0:05:58]} Kc6 {[%emt 0:04:55]} 47. Nf2 {[%emt 0:01:13]} Nc5 {[%emt 0:01:15]} 48. Ng4 {[%emt 0:08:40]} Nd7 {[%emt 0:05:23]} 49. Ne3 {[%emt 0:02:17]} Nc5 {[%emt 0:01:12]} 50. f5 {[%emt 0:02:01]} gxf5 {[%emt 0:01:04]} 51. Nxf5 {[%emt 0:01:16]} Ne6+ {[%emt 0:00:53]} 52. Ke4 {[%emt 0:03:48]} Nc5+ {[%emt 0:00:57]} 1/2-1/2

[Event "EYCC Open-U16 2019"]
[Site "Bratislava"]
[Date "2019.08.09"]
[Round "8.33"]
[White "Neiman, Maks"]
[Black "Bettalli, Francesco"]
[Result "1-0"]
[ECO "D00"]
[WhiteElo "1971"]
[BlackElo "2095"]
[Annotator "NA"]
[PlyCount "87"]
[EventDate "2019.08.02"]
[EventType "swiss"]
[EventCountry "SVK"]
[SourceTitle "playchess.com"]
[Source "ChessBase"]
[SourceQuality "1"]
[TimeControl "40/5400+30:1800+30"]

1. d4 {[%emt 0:00:00]} d5 {[%emt 0:00:00]} 2. Bf4 {[%emt 0:00:11]} Nf6 {[%emt 0:00:00]} 3. e3 {[%emt 0:00:34]} c5 {[%emt 0:00:01]} 4. c3 {[%emt 0:01:12]} e6 {[%emt 0:00:04]} 5. Nf3 {[%emt 0:00:14]} Nc6 {[%emt 0:00:03]} 6. Nbd2 {[%emt 0:01:06]} Bd6 {[%emt 0:00:05]} 7. Bg3 {[%emt 0:00:29]} Qe7 {[%emt 0:00:04]} 8. Bd3 {[%emt 0:06:15]} O-O {[%emt 0:00:14]} 9. Ne5 {[%emt 0:01:23]} Nd7 {[%emt 0:00:05]} 10. Nxd7 {[%emt 0:00:39]} Bxd7 {[%emt 0:00:25]} 11. Bxd6 {[%emt 0:00:20]} Qxd6 {[%emt 0:00:06]} 12. dxc5 {[%emt 0:00:17]} Qxc5 {[%emt 0:00:11]} 13. Bxh7+ {[%emt 0:00:28]} Kxh7 {[%emt 0:02:47]} 14. Qh5+ {[%emt 0:00:15]} Kg8 {[%emt 0:00:00]} 15. Ne4 {[%emt 0:00:13]} Qc4 {[%emt 0:04:39]} 16. Ng5 {[%emt 0:00:59]} Qd3 {[%emt 0:00:05]} 17. e4 {[%emt 0:04:37]} Rfd8 {[%emt 0:00:17]} 18. Qxf7+ {[%emt 0:02:27]} Kh8 {[%emt 0:00:01]} 19. Rd1 {[%emt 0:16:45]} Qc4 {[%emt 0:01:55]} 20. f4 {[%emt 0:11:16]} Nb4 {[%emt 0:17:55]} 21. Qh5+ {[%emt 0:14:24]} Kg8 {[%emt 0:00:01]} 22. Qh7+ {[%emt 0:01:52]} Kf8 {[%emt 0:00:00]} 23. e5 {[%emt 0:01:27]} Re8 {[%emt 0:04:33]} 24. cxb4 {[%emt 0:15:05]} Qxb4+ {[%emt 0:03:43]} 25. Rd2 {[%emt 0:01:08]} Ke7 {[%emt 0:04:28]} 26. Qxg7+ {[%emt 0:03:07]} Kd8 {[%emt 0:00:01]} 27. Rf1 {[%emt 0:08:19]} Kc7 {[%emt 0:18:30]} 28. Rf3 {[%emt 0:01:33]} d4 {[%emt 0:00:06]} 29. a3 {[%emt 0:04:24]} Qa4 {[%emt 0:03:48]} 30. Rfd3 {[%emt 0:00:45]} Rg8 {[%emt 0:02:06]} 31. Qe7 {[%emt 0:01:38]} Qc6 {[%emt 0:00:12]} 32. Rxd4 {[%emt 0:00:42]} Rad8 {[%emt 0:00:35]} 33. Nf7 {[%emt 0:01:33]} Qc1+ {[%emt 0:01:24]} 34. Kf2 {[%emt 0:00:26]} Kb8 {[%emt 0:01:44]} 35. Nxd8 {[%emt 0:00:52]} Qh1 {[%emt 0:00:11]} 36. Qd6+ {[%emt 0:00:29]} Ka8 {[%emt 0:00:05]} 37. Kf3 {[%emt 0:00:34]} Be8 {[%emt 0:02:08]} 38. Nf7 {[%emt 0:00:30]} Bc6+ {[%emt 0:00:23]} 39. Ke3 {[%emt 0:00:26]} Qe1+ {[%emt 0:01:07]} 40. Kd3 {[%emt 0:00:00]} Bb5+ {[%emt 0:00:00]} 41. Kc2 {[%emt 0:10:14]} Rc8+ {[%emt 0:01:05]} 42. Kb3 {[%emt 0:02:51]} Qc1 {[%emt 0:01:01]} 43. Qxe6 {[%emt 0:02:49]} a5 {[%emt 0:00:32]} 44. Qxc8+ {[%emt 0:00:18]} 1-0

[Event "EYCC Open-U16 2019"]
[Site "Bratislava"]
[Date "2019.08.09"]
[Round "8.34"]
[White "Jirousek, Jan"]
[Black "Niedbala, Bartlomiej"]
[Result "0-1"]
[ECO "E21"]
[WhiteElo "1924"]
[BlackElo "2152"]
[Annotator "NA"]
[PlyCount "150"]
[EventDate "2019.08.02"]
[EventType "swiss"]
[EventCountry "SVK"]
[SourceTitle "playchess.com"]
[Source "ChessBase"]
[SourceQuality "1"]
[TimeControl "40/5400+30:1800+30"]

1. Nf3 {[%emt 0:00:00]} Nf6 {[%emt 0:00:13]} 2. d4 {[%emt 0:00:00]} e6 {[%emt 0:00:06]} 3. c4 {[%emt 0:00:13]} b6 {[%emt 0:00:20]} 4. Nc3 {[%emt 0:00:18]} Bb7 {[%emt 0:00:21]} 5. e3 {[%emt 0:00:37]} Bb4 {[%emt 0:02:46]} 6. Qc2 {[%emt 0:00:22]} Ne4 {[%emt 0:02:31]} 7. Bd2 {[%emt 0:04:10]} Bxc3 {[%emt 0:10:23]} 8. Bxc3 {[%emt 0:00:16]} O-O {[%emt 0:02:28]} 9. Bd3 {[%emt 0:00:39]} f5 {[%emt 0:00:58]} 10. O-O-O {[%emt 0:11:15]} Nxc3 {[%emt 0:08:00]} 11. Qxc3 {[%emt 0:00:49]} Bxf3 {[%emt 0:00:14]} 12. gxf3 {[%emt 0:00:17]} d6 {[%emt 0:02:46]} 13. Rdg1 {[%emt 0:04:13]} Qf6 {[%emt 0:04:36]} 14. Qc2 {[%emt 0:05:12]} c5 {[%emt 0:05:17]} 15. d5 {[%emt 0:06:36]} exd5 {[%emt 0:03:51]} 16. cxd5 {[%emt 0:00:21]} Nd7 {[%emt 0:00:03]} 17. Bb5 {[%emt 0:10:58]} Rad8 {[%emt 0:01:54]} 18. Bxd7 {[%emt 0:02:36]} Rxd7 {[%emt 0:00:02]} 19. Rg2 {[%emt 0:06:57]} b5 {[%emt 0:01:51]} 20. Rhg1 {[%emt 0:04:29]} c4 {[%emt 0:11:01]} 21. Qc3 {[%emt 0:03:20]} Qxc3+ {[%emt 0:01:52]} 22. bxc3 {[%emt 0:00:05]} Re8 {[%emt 0:02:56]} 23. Kc2 {[%emt 0:03:26]} Rc7 {[%emt 0:01:16]} 24. Rd1 {[%emt 0:01:20]} Kf7 {[%emt 0:00:16]} 25. f4 {[%emt 0:01:17]} Rb8 {[%emt 0:02:26]} 26. a3 {[%emt 0:04:04]} Kf6 {[%emt 0:05:08]} 27. Rgg1 {[%emt 0:01:34]} Re8 {[%emt 0:02:43]} 28. h4 {[%emt 0:05:10]} Rc5 {[%emt 0:01:25]} 29. Rd4 {[%emt 0:01:55]} Re4 {[%emt 0:01:22]} 30. Rd2 {[%emt 0:04:17]} Re7 {[%emt 0:01:27]} 31. h5 {[%emt 0:02:43]} g6 {[%emt 0:03:34]} 32. h6 {[%emt 0:04:18]} Kf7 {[%emt 0:00:41]} 33. Rb1 {[%emt 0:01:24]} Kf6 {[%emt 0:05:03]} 34. Rg1 {[%emt 0:00:44]} Re8 {[%emt 0:01:10]} 35. Rd4 {[%emt 0:00:33]} Rg8 {[%emt 0:00:10]} 36. Rg5 {[%emt 0:01:02]} Re8 {[%emt 0:02:39]} 37. Rg1 {[%emt 0:00:20]} Re4 {[%emt 0:00:03]} 38. Rxe4 {[%emt 0:04:43]} fxe4 {[%emt 0:00:21]} 39. Rg5 {[%emt 0:00:07]} Rc8 {[%emt 0:00:28]} 40. Rg1 {[%emt 0:00:00]} a6 {[%emt 0:00:00]} 41. Kd2 {[%emt 0:09:51]} Rg8 {[%emt 0:08:41]} 42. Rg5 {[%emt 0:00:19]} Rb8 {[%emt 0:09:10]} 43. Rg1 {[%emt 0:05:36]} Rf8 {[%emt 0:01:20]} 44. Ke2 {[%emt 0:03:58]} Ke7 {[%emt 0:00:41]} 45. Rd1 {[%emt 0:12:18]} Rf5 {[%emt 0:03:49]} 46. Rd4 {[%emt 0:00:07]} Kd7 {[%emt 0:06:27]} 47. Rxe4 {[%emt 0:01:40]} Rxd5 {[%emt 0:00:17]} 48. Rd4 {[%emt 0:00:31]} Rh5 {[%emt 0:00:53]} 49. a4 {[%emt 0:02:06]} Kc6 {[%emt 0:04:41]} 50. axb5+ {[%emt 0:00:52]} axb5 {[%emt 0:00:25]} 51. Rd1 {[%emt 0:00:55]} Rxh6 {[%emt 0:00:44]} 52. e4 {[%emt 0:00:31]} Rh5 {[%emt 0:02:19]} 53. Ke3 {[%emt 0:00:41]} Kc5 {[%emt 0:01:06]} 54. f3 {[%emt 0:00:41]} Kc6 {[%emt 0:04:21]} 55. Kd4 {[%emt 0:00:53]} Rh3 {[%emt 0:01:26]} 56. Ke3 {[%emt 0:00:15]} Rh5 {[%emt 0:02:19]} 57. Kd4 {[%emt 0:00:06]} Rh2 {[%emt 0:02:23]} 58. e5 {[%emt 0:00:54]} Re2 {[%emt 0:00:29]} 59. Rh1 {[%emt 0:01:22]} Rd2+ {[%emt 0:00:37]} 60. Ke3 {[%emt 0:00:50]} Rd3+ {[%emt 0:00:11]} 61. Ke2 {[%emt 0:00:16]} dxe5 {[%emt 0:02:00]} 62. fxe5 {[%emt 0:00:12]} Kd5 {[%emt 0:00:26]} 63. f4 {[%emt 0:01:37]} Rxc3 {[%emt 0:00:22]} 64. Rxh7 {[%emt 0:00:12]} Rc2+ {[%emt 0:01:08]} 65. Kd1 {[%emt 0:01:13]} Rf2 {[%emt 0:00:25]} 66. Rd7+ {[%emt 0:00:10]} Kc6 {[%emt 0:00:27]} 67. Rd6+ {[%emt 0:00:41]} Kc5 {[%emt 0:00:30]} 68. Rf6 {[%emt 0:00:43]} b4 {[%emt 0:00:00]} 69. e6 {[%emt 0:00:39]} Kd6 {[%emt 0:00:05]} 70. Rxg6 {[%emt 0:00:27]} Rxf4 {[%emt 0:00:12]} 71. Kc2 {[%emt 0:00:27]} Rf2+ {[%emt 0:00:02]} 72. Kc1 {[%emt 0:00:24]} b3 {[%emt 0:00:15]} 73. e7+ {[%emt 0:00:36]} Kxe7 {[%emt 0:00:02]} 74. Rc6 {[%emt 0:00:14]} Rc2+ {[%emt 0:00:02]} 75. Kb1 {[%emt 0:00:07]} Kd7 {[%emt 0:00:03]} 0-1